bitfinex-derivatives/quotes_ETHF0:USTF0_20250126
["timestamp","ask_amount","ask_price","bid_price","bid_amount"]
[1737934008618,3.2095141,3250.9,3250.3,3.2078]
[1737934008919,3.2095141,3250.9,3250.3,6.11646327]
[1737934009116,0.0017141,3250.9,3250.3,6.11646327]
[1737934010317,3.2078,3251.5,3250.7,2.90866327]
[1737934011513,3.2078,3251.5,3250.7,7.81086327]
[1737934012712,6.11646327,3251.5,3250.0,3.43124079]
[1737934012927,3.2078,3250.5,3249.9,2.90866327]
[1737934013121,3.2078,3250.9,3249.9,2.90866327]
[1737934013615,3.2078,3250.9,3249.8,0.0046178]
[1737934013616,3.2078,3250.9,3250.3,2.90866327]
[1737934014120,3.2078,3251.3,3250.4,3.2078]
[1737934015019,3.2078,3251.3,3250.7,2.90866327]
[1737934015216,3.2078,3251.3,3250.4,3.2078]
[1737934016814,3.2078,3251.3,3249.8,9.9684178]
[1737934016815,3.2078,3252.3,3251.2,2.90866327]
[1737934017014,3.2078,3252.3,3251.6,2.90866327]
[1737934017214,3.2078,3252.3,3251.2,2.90866327]
[1737934017423,10.0832,3252.5,3251.2,2.90866327]
[1737934017424,3.2078,3251.9,3251.2,2.90866327]
[1737934017625,3.2078,3251.9,3251.4,0.0046178]
[1737934017811,3.2078,3251.5,3250.9,3.2078]
[1737934018012,3.2078,3251.5,3250.4,2.90866327]
[1737934018013,4.8411,3251.4,3250.4,2.90866327]
[1737934018921,4.8411,3251.4,3250.6,3.2078]
[1737934019123,0.0046178,3251.2,3250.6,3.2124178]
[1737934019425,0.0046178,3251.2,3250.8,2.90866327]
[1737934019828,0.0046178,3251.2,3251.0,3.2078]
[1737934021028,0.0046178,3251.2,3250.8,2.90866327]
[1737934021719,3.2124178,3251.2,3250.8,2.90866327]
[1737934022427,8.2124178,3251.2,3250.6,0.0046178]
[1737934022616,3.2078,3250.7,3249.6,2.90866327]
[1737934022820,3.2078,3250.2,3249.6,2.90866327]
[1737934023228,3.2078,3250.2,3250.0,2.90866327]
[1737934025421,3.2078,3250.2,3249.8,0.0046178]
[1737934026428,9.9475,3250.1,3249.2,2.90866327]
[1737934026630,3.2078,3249.6,3249.2,2.90866327]
[1737934027018,2.8377,3249.6,3249.2,2.90866327]
[1737934027217,3.2078,3250.0,3249.2,6.11646327]
[1737934027421,3.2078,3250.0,3248.8,5.1374]
[1737934027422,3.2078,3250.4,3249.9,2.90866327]
[1737934027822,3.2078,3250.0,3249.5,2.90866327]
[1737934028425,3.2078,3250.0,3249.9,2.90866327]
[1737934029526,3.2078,3250.0,3249.3,0.0046178]
[1737934029729,3.2078,3249.4,3249.3,0.0046178]
[1737934030033,3.2078,3249.4,3248.7,2.90866327]
[1737934030225,3.2078,3249.4,3249.1,2.90866327]
[1737934030526,3.2078,3249.6,3249.1,2.90866327]
[1737934031331,0.0046178,3249.7,3249.5,2.90866327]
[1737934031629,0.0046178,3249.7,3249.5,6.11646327]
[1737934031929,3.2078,3251.5,3249.6,2.90866327]
[1737934032133,3.2078,3251.5,3250.7,2.90866327]
[1737934032430,3.2078,3251.7,3250.9,3.2078]
[1737934032634,3.2078,3252.1,3251.5,2.90866327]
[1737934033128,3.2124178,3252.1,3251.5,2.91328107]
[1737934039436,3.2078,3253.5,3252.0,3.2078]
[1737934039641,3.2078,3253.5,3252.9,2.90866327]
[1737934039935,3.2078,3253.9,3252.9,2.90866327]
[1737934040139,3.2078,3253.9,3253.0,3.2078]
[1737934040740,0.00461027,3253.8,3253.1,0.00461027]
[1737934041233,0.00461027,3253.8,3253.4,3.2078]
[1737934041439,3.2078,3253.5,3253.1,0.00461027]
[1737934041639,4.9777,3253.4,3252.1,7.79856327]
[1737934041938,4.8954,3253.3,3252.1,7.79856327]
[1737934042234,3.2078,3252.9,3251.7,2.90866327]
[1737934042733,3.2078,3252.9,3252.0,0.00461027]
[1737934043932,3.2078,3252.5,3252.0,0.00461027]
[1737934044634,3.2078,3252.5,3252.0,2.91327354]
[1737934046135,3.2078,3253.0,3252.0,6.12107354]
[1737934047037,3.2078,3253.0,3252.1,3.2078]
[1737934047246,3.2078,3252.6,3252.0,0.00461027]
[1737934047451,3.2078,3252.2,3252.0,0.00461027]
[1737934048643,3.2078,3252.7,3252.0,0.00461027]
[1737934049342,3.2078,3252.7,3252.0,2.91327354]
[1737934049537,3.2078,3252.7,3252.0,0.00461027]
[1737934050538,3.2078,3252.2,3250.8,6.11646327]
[1737934050742,3.2078,3251.7,3250.8,6.11646327]
[1737934051744,0.00461027,3251.6,3250.9,0.00461027]
[1737934052141,0.00461027,3251.6,3251.2,6.11646327]
[1737934053250,0.00461027,3251.6,3251.3,40.8]
[1737934053944,0.00461027,3251.6,3251.4,4.9358]
[1737934054846,0.00461027,3251.6,3251.2,6.34455373]
[1737934054847,0.00461027,3251.6,3251.2,6.11646327]
[1737934055052,0.00461027,3251.6,3251.2,3.2078]
[1737934055245,0.00461027,3251.6,3251.2,6.11646327]
[1737934056646,3.21241027,3251.6,3251.2,2.90866327]
[1737934056847,3.21241027,3251.6,3250.9,0.00461027]
[1737934057844,1.53813,3251.5,3250.9,0.00461027]
[1737934058142,0.61526,3251.5,3251.2,6.11646327]
[1737934058345,0.00461027,3251.6,3251.2,6.11646327]
[1737934058545,0.61985027,3251.6,3251.2,6.11646327]
[1737934058945,0.00461027,3251.6,3251.2,6.11646327]
[1737934059449,0.61529,3251.4,3251.2,6.11646327]
[1737934059648,0.61529,3251.3,3251.2,6.11646327]
[1737934060040,0.00461027,3251.6,3251.2,6.11646327]
[1737934060244,0.61525,3251.5,3251.2,6.11646327]
[1737934060446,0.61528,3251.4,3251.2,6.11646327]
[1737934060642,0.61529,3251.3,3251.2,6.11646327]
[1737934061847,0.00461027,3251.6,3251.2,6.11646327]
[1737934062053,0.61529,3251.3,3251.2,6.11646327]
[1737934063253,0.61526,3251.5,3251.2,6.11646327]
[1737934063750,0.61525,3251.5,3251.2,6.11646327]
[1737934063952,0.00461027,3251.6,3251.2,6.11646327]
[1737934064652,0.61529,3251.3,3251.2,6.11646327]
[1737934065541,0.61528,3251.4,3251.2,6.11646327]
[1737934065856,0.61529,3251.3,3251.2,3.2078]
[1737934066250,0.61529,3251.3,3251.2,6.11646327]
[1737934066450,0.00461027,3251.6,3251.2,6.11646327]
[1737934066950,0.61985027,3251.6,3251.2,6.11646327]
[1737934067349,0.00461027,3251.6,3251.3,40.8]
[1737934067549,0.61527,3251.4,3251.3,40.8]
[1737934067759,0.00461027,3251.6,3251.2,6.11646327]
[1737934067954,0.61985027,3251.6,3251.2,6.11646327]
[1737934068251,0.00461027,3251.6,3251.2,46.91646327]
[1737934068660,0.00461027,3251.6,3251.2,47.53176327]
[1737934069259,0.00461027,3251.6,3251.2,46.91646327]
[1737934069458,0.00461027,3251.6,3251.2,47.53176327]
[1737934069760,0.00461027,3251.6,3251.4,0.61526]
[1737934070653,0.00461027,3251.6,3251.3,5.55798]
[1737934070852,0.00461027,3251.6,3251.3,4.9427]
[1737934071046,1e-08,3251.6,3251.3,4.9427]
[1737934071556,1e-08,3251.6,3251.3,5.55798]
[1737934072152,1e-08,3251.6,3251.4,0.61526]
[1737934072354,1e-08,3251.6,3251.3,5.55798]
[1737934072554,1e-08,3251.6,3251.3,4.9427]
[1737934072750,1e-08,3251.6,3251.2,3.2078]
[1737934072751,0.61529,3251.3,3251.2,3.2078]
[1737934075457,0.61534,3251.0,3250.9,0.00461027]
[1737934075658,0.61546,3250.4,3250.0,13.53653]
[1737934075855,0.61546,3250.4,3250.0,12.921]
[1737934076556,1.53837,3251.0,3250.0,12.921]
[1737934076760,0.6155,3250.2,3250.0,12.921]
[1737934076960,0.61548,3250.3,3250.0,12.921]
[1737934077557,1.53837,3251.0,3250.0,12.921]
[1737934077756,0.61551,3250.2,3250.0,12.921]
[1737934078454,1.5385,3250.8,3250.0,12.921]
[1737934078767,0.61551,3250.1,3250.0,12.921]
[1737934080157,0.61548,3250.3,3250.0,12.921]
[1737934080359,4.7746,3250.5,3250.0,12.921]
[1737934080562,0.61541,3250.7,3250.3,6.73194327]
[1737934080866,0.61534,3251.1,3250.4,0.61546]
[1737934081065,0.61534,3251.1,3250.3,6.11646327]
[1737934081066,5.86529,3251.3,3250.8,2.90866327]
[1737934081258,1e-08,3251.6,3251.2,3.2078]
[1737934081459,1e-08,3251.6,3251.2,6.11646327]
[1737934081658,1e-08,3251.6,3251.3,0.61528]
[1737934081858,1e-08,3251.6,3251.4,0.61526]
[1737934082455,1e-08,3251.6,3251.3,5.1796]
[1737934082668,0.61523001,3251.6,3251.3,5.79488]
[1737934082862,1e-08,3251.6,3251.3,5.79488]
[1737934083060,1e-08,3251.6,3251.3,5.1796]
[1737934083368,1e-08,3251.6,3251.5,0.61525]
[1737934083564,1e-08,3251.6,3251.3,5.1796]
[1737934083763,0.61524001,3251.6,3251.3,5.1796]
[1737934083957,1e-08,3251.6,3251.3,5.79489]
[1737934084364,1e-08,3251.6,3251.3,5.1796]
[1737934084564,1e-08,3251.6,3251.3,5.79488]
[1737934084764,1e-08,3251.6,3251.4,0.61526]
[1737934085565,1e-08,3251.6,3251.4,0.61527]
[1737934086373,1e-08,3251.6,3251.5,0.61525]
[1737934086766,0.61501,3252.8,3251.6,1.53806]
[1737934086962,0.61501,3252.8,3252.6,2.90866327]
[1737934087872,10.0216,3253.5,3252.3,3.2078]
[1737934087873,0.61506,3252.5,3252.4,0.00461027]
[1737934089462,3.21241027,3253.0,3252.4,0.00461027]
[1737934089767,0.61506,3252.5,3252.4,0.00461027]
[1737934090566,3.2078,3252.5,3251.8,2.90866327]
[1737934090767,0.61519,3251.8,3251.7,3.2078]
[1737934091975,0.61525,3251.5,3251.4,0.00461027]
[1737934092672,0.61548,3250.3,3250.2,7.91800319]
[1737934093372,0.61547,3250.4,3250.2,7.91800319]
[1737934093575,0.00461027,3250.6,3250.2,7.91800319]
[1737934093870,0.61548,3250.3,3250.2,7.91800319]
[1737934094772,0.61548,3250.3,3249.9,0.00308358]
[1737934094773,3.2078,3250.3,3249.9,0.00308358]
[1737934095072,0.61553,3250.0,3249.9,0.00308358]
[1737934095666,0.61567,3249.3,3249.0,6.11646327]
[1737934096070,0.61565,3249.4,3249.0,6.11646327]
[1737934096272,0.61576,3248.8,3248.6,43.70866327]
[1737934096469,0.61575,3248.9,3248.5,3.2078]
[1737934097367,0.61574,3248.9,3248.5,3.2078]
[1737934097775,0.61576,3248.8,3248.5,3.2078]
[1737934098075,0.00461027,3249.0,3248.5,3.2078]
[1737934098367,0.61584,3248.4,3248.3,4.71020319]
[1737934098971,4.7518,3248.8,3248.3,4.71020319]
[1737934099167,0.61584,3248.4,3248.3,4.71020319]
[1737934099369,0.61592,3248.0,3247.6,3.2078]
[1737934099575,0.6159,3248.1,3247.6,3.2078]
[1737934100164,0.61595,3247.9,3247.6,3.2078]
[1737934100368,8.1178,3248.7,3247.6,3.2078]
[1737934100779,0.61602,3247.5,3247.2,5.1772]
[1737934100971,0.61604,3247.4,3247.2,5.1772]
[1737934101271,3.2078,3247.8,3246.7,3.2078]
[1737934101479,5.0022,3247.7,3246.7,3.2078]
[1737934101665,0.61605,3247.3,3246.7,3.2078]
[1737934102073,3.2078,3247.2,3246.7,3.2078]
[1737934102470,0.61612,3247.0,3246.7,3.2078]
[1737934102670,0.61611,3247.0,3246.7,3.2078]
[1737934102870,3.21241772,3247.6,3246.7,3.2078]
[1737934103484,0.61602,3247.5,3247.1,3.2078]
[1737934103677,3.82840772,3247.6,3247.1,3.2078]
[1737934103877,0.00461772,3247.6,3247.1,3.2078]
[1737934104085,0.62060772,3247.6,3247.1,3.2078]
[1737934104284,0.00461772,3247.6,3247.5,3.2078]
[1737934104587,0.00461772,3247.6,3247.5,3.82381]
[1737934104787,0.00461772,3247.6,3247.5,3.2078]
[1737934104991,0.00461772,3247.6,3247.5,40.8]
[1737934105488,0.61602,3247.5,3247.1,3.2078]
[1737934105786,0.61601,3247.5,3247.1,3.2078]
[1737934105987,0.61601,3247.5,3247.1,44.0078]
[1737934106175,0.00461772,3247.6,3247.1,44.0078]
[1737934106378,0.00461772,3247.6,3247.1,44.62387]
[1737934106786,0.00461772,3247.6,3247.1,44.0078]
[1737934106986,0.62061772,3247.6,3247.1,44.0078]
[1737934107191,0.00461772,3247.6,3247.1,44.0078]
[1737934107393,0.61601,3247.5,3247.1,44.0078]
[1737934107589,0.61602,3247.5,3247.1,3.2078]
[1737934107784,0.61601,3247.5,3247.1,3.2078]
[1737934108092,0.61602,3247.5,3247.1,3.2078]
[1737934108891,0.00461772,3247.6,3247.1,3.2078]
[1737934109191,0.00461772,3247.6,3247.2,5.1286]
[1737934109390,0.61604,3247.4,3247.2,5.1286]
[1737934109601,0.00461772,3247.6,3246.7,0.23927116]
[1737934109892,0.00461772,3247.6,3246.6,3.82397]
[1737934109893,4.75240772,3247.6,3246.6,3.2078]
[1737934110290,0.61614,3246.8,3246.6,3.2078]
[1737934110594,0.61613,3246.9,3246.6,3.2078]
[1737934110894,0.61616,3246.7,3246.6,3.2078]
[1737934111691,9.6912,3247.1,3246.3,12.924]
[1737934112093,0.61619,3246.6,3246.1,0.61626]
[1737934112392,9.6912,3247.1,3246.0,3.82408]
[1737934112593,9.6912,3247.1,3246.0,3.2078]
[1737934112891,9.6912,3247.1,3246.0,3.82409]
[1737934112892,0.61623,3246.4,3246.0,3.82409]
[1737934113088,9.6912,3247.1,3246.0,3.2078]
[1737934113389,3.2078,3247.2,3246.4,3.2078]
[1737934113789,0.61614,3246.8,3246.4,3.2078]
[1737934113991,3.2078,3247.2,3246.4,3.2078]
[1737934114295,0.61611,3247.0,3246.5,0.6162]
[1737934114698,0.6161,3247.1,3246.6,0.61618]
[1737934114994,0.61608,3247.1,3246.7,0.61615]
[1737934115289,0.61608,3247.1,3246.6,0.61617]
[1737934115593,0.00461772,3247.6,3247.0,3.2078]
[1737934115793,0.61602,3247.5,3247.0,3.82389]
[1737934116093,0.00461772,3247.6,3247.0,3.2078]
[1737934116290,0.62061772,3247.6,3247.0,3.2078]
[1737934116587,0.00461772,3247.6,3247.5,0.61601]
[1737934116981,0.00461772,3247.6,3247.4,3.2078]
[1737934117185,0.61601,3247.5,3247.4,3.2078]
[1737934117390,0.00461772,3247.6,3247.4,3.2078]
[1737934117589,0.00461772,3247.6,3247.5,0.61601]
[1737934118490,0.00461772,3247.6,3247.5,5.38161]
[1737934118884,3.2078,3248.8,3247.5,4.7656]
[1737934118885,0.61581,3248.6,3247.5,4.7656]
[1737934119198,0.61585,3248.4,3248.1,3.2078]
[1737934119487,3.2078,3248.8,3248.1,3.2078]
[1737934119692,0.61574,3249.0,3248.7,3.2078]
[1737934119889,1.272,3249.3,3248.0,3.3661805]
[1737934119890,3.2078,3249.4,3248.3,3.2078]
[1737934120295,0.6158,3248.6,3248.5,0.00461772]
[1737934120887,0.61578,3248.8,3248.5,0.00461772]
[1737934121087,0.61579,3248.7,3248.5,0.00461772]
[1737934121297,0.00461772,3249.2,3248.5,0.00461772]
[1737934121298,0.61575,3248.9,3248.5,0.00461772]
[1737934121596,0.00461772,3249.2,3248.5,0.00461772]
[1737934121890,0.00461772,3249.2,3248.7,3.2078]
[1737934122285,0.61576,3248.8,3248.7,3.2078]
[1737934122486,0.00461772,3249.2,3248.7,3.2078]
[1737934123000,3.2078,3249.0,3248.5,0.00461772]
[1737934123289,0.6158,3248.6,3248.5,0.00461772]
[1737934123689,5.6158,3248.6,3248.5,0.00461772]
[1737934123896,0.6158,3248.6,3248.5,0.00461772]
[1737934131384,3.8236,3248.6,3248.5,0.00461772]
[1737934131591,8.8236,3248.6,3248.5,0.00461772]
[1737934131888,1.53961,3248.4,3247.4,0.61602]
[1737934132192,0.616,3247.6,3247.4,0.61602]
[1737934132496,3.2078,3248.0,3247.4,0.61602]
[1737934132689,4.808,3247.9,3247.4,0.61602]
[1737934132891,0.61601,3247.5,3247.4,0.61602]
[1737934133299,0.616,3247.6,3247.4,0.61602]
[1737934133785,0.61598,3247.7,3247.5,0.616]
[1737934133985,0.61598,3247.7,3247.6,0.61599]
[1737934134189,0.61589,3248.2,3248.0,0.6159]
[1737934134389,3.2078,3248.6,3248.2,0.61587]
[1737934134594,0.61586,3248.3,3248.2,0.61587]
[1737934135000,3.2078,3248.6,3247.9,3.2078]
[1737934135198,0.61586,3248.3,3248.2,0.61587]
[1737934135701,0.61586,3248.3,3248.1,0.61588]
[1737934135998,0.61586,3248.3,3248.2,0.61587]
[1737934136390,0.61586,3248.3,3248.2,0.61586]
[1737934136699,0.00461772,3248.7,3248.6,0.6158]
[1737934138699,0.00461772,3248.7,3248.0,11.12677126]
[1737934138905,0.62040772,3248.7,3248.6,0.6158]
[1737934139701,0.61582,3248.5,3248.4,3.2078]
[1737934140106,0.6158,3248.6,3248.5,0.61581]
[1737934140407,0.62040772,3248.7,3248.5,0.61582]
[1737934140600,0.00461772,3248.7,3248.5,0.61582]
[1737934140906,0.6158,3248.6,3248.5,0.61582]
[1737934141106,0.61584,3248.4,3248.3,3.2078]
[1737934141497,0.00461772,3248.7,3248.3,3.2078]
[1737934141703,0.61584,3248.4,3248.3,3.2078]
[1737934142307,3.2078,3248.6,3247.5,1.53999]
[1737934142509,0.61594,3247.9,3247.8,0.61594]
[1737934142711,3.2078,3248.2,3247.5,5.2349]
[1737934142906,3.2078,3247.8,3247.4,3.2078]
[1737934143111,0.61601,3247.5,3247.4,3.2078]
[1737934143410,3.21241772,3248.7,3247.4,6.12057126]
[1737934143607,0.61579,3248.7,3248.4,3.52861126]
[1737934143803,3.2078,3249.1,3248.4,3.52861126]
[1737934143804,3.2078,3249.1,3248.4,2.91277126]
[1737934144005,0.61572,3249.0,3248.7,0.61577]
[1737934144202,0.61578,3248.7,3248.4,8.78690126]
[1737934144506,0.61589,3248.1,3248.0,2.91277126]
[1737934144811,0.6159,3248.1,3247.8,0.61594]
[1737934145007,0.6159,3248.1,3247.7,0.00461772]
[1737934145008,0.00461772,3248.4,3247.7,0.00461772]
[1737934145208,0.00461772,3248.4,3248.3,0.61586]
[1737934145409,0.00461772,3248.4,3248.3,3.82366]
[1737934146914,0.00461772,3248.4,3248.3,3.2078]
[1737934148111,0.62046772,3248.4,3248.0,2.91277126]
[1737934148315,0.00461772,3248.4,3248.3,3.2078]
[1737934148510,0.00461772,3248.4,3248.3,3.82366]
[1737934149208,0.00461772,3248.4,3248.0,2.91277126]
[1737934149716,0.61586,3248.3,3248.0,2.91277126]
[1737934150215,0.00461772,3248.4,3248.0,2.91277126]
[1737934150605,0.61587,3248.3,3247.9,3.82372]
[1737934151111,0.00461772,3248.4,3247.9,3.82372]
[1737934151320,0.61587,3248.3,3247.9,3.82372]
[1737934151610,0.00461772,3248.4,3247.9,3.2078]
[1737934152016,0.61587,3248.3,3247.9,3.82372]
[1737934152312,3.21241772,3248.4,3247.7,0.00461772]
[1737934152516,3.21241772,3248.4,3247.8,0.61595]
[1737934152716,0.61591,3248.1,3247.7,0.62057772]
[1737934152915,0.61591,3248.1,3247.8,0.61595]
[1737934153319,3.21241772,3248.4,3247.7,0.00461772]
[1737934154315,0.61595,3247.8,3247.7,0.00461772]
[1737934155011,3.2078,3248.0,3247.7,0.00461772]
[1737934155318,3.2078,3248.0,3247.8,0.61594]
[1737934155319,3.82372,3248.0,3247.8,0.61594]
[1737934155513,0.61594,3247.9,3247.7,0.62057772]
[1737934156016,0.61595,3247.8,3247.7,0.00461772]
[1737934156816,3.2078,3248.0,3247.7,0.00461772]
[1737934157315,0.61593,3247.9,3247.7,0.62057772]
[1737934157513,0.61595,3247.8,3247.7,0.00461772]
[1737934159514,0.61595,3247.8,3247.7,0.62058772]
[1737934159908,3.82372,3248.0,3247.9,0.61593]
[1737934160119,3.2078,3248.0,3247.9,0.61593]
[1737934160306,4.8577,3248.3,3247.9,3.2078]
[1737934160506,0.00461772,3248.4,3247.9,3.2078]
[1737934160816,0.00461772,3248.4,3248.3,0.61586]
[1737934161009,0.00461772,3248.4,3248.3,3.82366]
[1737934161718,3.2078,3249.0,3248.8,0.61574]
[1737934161919,3.2078,3249.0,3248.9,0.61574]
[1737934162113,3.2078,3249.0,3248.8,2.91277126]
[1737934162314,0.6158,3248.6,3248.4,3.52861126]
[1737934162513,3.2078,3249.0,3248.4,2.91277126]
[1737934162714,0.61582,3248.6,3248.4,2.91277126]
[1737934163115,3.21241772,3249.0,3248.3,3.2078]
[1737934163314,0.61581,3248.6,3248.3,3.2078]
[1737934163520,0.61581,3248.6,3248.3,3.82365]
[1737934163720,0.61581,3248.6,3248.3,3.2078]
[1737934163924,0.61579,3248.7,3248.3,3.82364]
[1737934164123,3.21241772,3249.0,3248.3,3.2078]
[1737934164511,0.61578,3248.7,3248.3,3.82364]
[1737934164918,0.61581,3248.6,3248.3,3.2078]
[1737934165117,3.2078,3248.6,3248.0,5.1183]
[1737934165318,3.2078,3248.6,3247.9,3.2078]
[1737934165626,4.9744,3248.9,3247.7,0.00461772]
[1737934165628,0.61595,3247.8,3247.7,0.00461772]
[1737934166220,4.8415,3248.3,3247.7,0.62058772]
[1737934166419,0.61587,3248.2,3247.7,0.00461772]
[1737934166736,8.1822,3248.9,3248.1,3.2078]
[1737934166927,13.0237,3248.9,3248.2,0.61586]
[1737934167122,0.61583,3248.5,3248.3,0.61585]
[1737934167529,0.6158,3248.6,3248.1,3.2078]
[1737934167825,0.61582,3248.5,3248.4,0.61583]
[1737934168330,0.61586,3248.3,3248.2,0.61587]
[1737934169523,3.2078,3248.4,3247.7,0.00461772]
[1737934169724,0.61592,3248.0,3247.8,0.61594]
[1737934170222,3.2078,3248.4,3247.7,0.00461772]
[1737934170420,0.61595,3247.8,3247.7,0.00461772]
[1737934170616,0.61594,3247.9,3247.7,0.00461772]
[1737934170825,1.53954,3248.6,3247.7,0.00461772]
[1737934171028,0.61593,3248.0,3247.7,0.62057772]
[1737934171823,0.61593,3248.0,3247.8,0.61595]
[1737934172024,4.74738,3248.5,3247.9,0.61592]
[1737934172025,0.61588,3248.2,3247.9,0.61592]
[1737934172225,13.0237,3248.9,3248.1,3.2078]
[1737934172426,0.61582,3248.5,3248.3,0.61585]
[1737934172727,0.61582,3248.5,3248.1,3.2078]
[1737934172728,0.61584,3248.4,3248.2,0.61587]
[1737934174130,13.0237,3248.9,3248.1,3.2078]
[1737934174329,0.61585,3248.4,3248.2,0.61587]
[1737934175133,0.61584,3248.4,3248.3,0.61585]
[1737934175633,13.0237,3248.9,3248.3,2.91277126]
[1737934175834,0.61579,3248.7,3248.6,0.6158]
[1737934176131,8.0493,3248.9,3248.8,0.61576]
[1737934176331,0.00362292,3249.0,3248.9,0.61574]
[1737934178124,0.00362292,3249.0,3248.9,3.82354]
[1737934178622,3.2078,3250.4,3248.9,8.2078]
[1737934178824,5.58585,3250.5,3250.1,0.61551]
[1737934179026,4.9704,3250.5,3250.1,6.12057126]
[1737934179229,4.8113,3250.9,3250.7,0.61539]
[1737934179421,4.8113,3250.9,3250.6,0.61541]
[1737934179622,4.8113,3250.9,3250.5,6.12057126]
[1737934179828,7.7811,3251.7,3250.8,0.61537]
[1737934180024,0.61994772,3251.1,3250.9,6.12057126]
[1737934180234,0.00461772,3251.1,3250.9,6.12057126]
[1737934180432,0.00461772,3251.1,3250.9,6.73593126]
[1737934181233,0.00461772,3251.1,3250.9,6.12057126]
[1737934181431,0.61993772,3251.1,3250.9,6.73592126]
[1737934181636,0.00461772,3251.1,3251.0,0.61534]
[1737934183126,0.00461772,3251.1,3251.0,5.61534]
[1737934183333,0.61512,3252.3,3251.0,10.2165]
[1737934183532,0.61508,3252.4,3251.9,0.61516]
[1737934183838,0.61519,3251.8,3251.4,0.61526]
[1737934184036,0.61519,3251.8,3251.3,2.91277126]
[1737934184340,0.61518,3251.9,3251.6,0.61522]
[1737934184529,0.00461772,3251.9,3251.3,2.91277126]
[1737934184729,0.00461772,3251.9,3251.6,3.2078]
[1737934185136,0.00461772,3251.9,3251.8,0.61519]
[1737934186133,12.69715654,3253.3,3252.2,1.53777]
[1737934186326,12.69715654,3253.3,3251.9,1.53793]
[1737934186327,0.61494,3253.2,3252.8,2.91277126]
[1737934186527,12.69715654,3253.3,3252.8,2.91277126]
[1737934186728,5.2748,3253.7,3252.8,2.91277126]
[1737934186940,0.61494,3253.2,3252.8,2.91277126]
[1737934187334,0.61494,3253.2,3252.9,0.00461772]
[1737934187727,0.00461772,3253.6,3252.9,0.00461772]
[1737934187934,0.61497,3253.0,3252.9,0.00461772]
[1737934188129,0.61494,3253.2,3252.9,0.00461772]
[1737934188336,0.61495,3253.1,3252.9,0.00461772]
[1737934189244,0.61497,3253.0,3252.9,0.00461772]
[1737934189633,0.00461772,3253.6,3252.9,0.00461772]
[1737934189837,3.21241772,3253.6,3252.9,0.00461772]
[1737934190140,3.21241772,3253.6,3253.0,0.61496]
[1737934190442,3.21241772,3253.6,3252.9,0.00461772]
[1737934190637,0.61487,3253.5,3253.0,0.61497]
[1737934191028,0.61487,3253.5,3253.1,0.61494]
[1737934191539,3.21241772,3253.6,3253.5,0.61487]
[1737934191743,0.00461772,3253.6,3253.5,0.61487]
[1737934191937,0.00461772,3253.6,3253.4,0.61488]
[1737934192540,0.00461772,3253.6,3253.3,3.2078]
[1737934192937,0.00461772,3253.6,3252.9,0.00461772]
[1737934192938,0.61497,3253.0,3252.9,0.00461772]
[1737934193241,0.00461772,3253.6,3252.9,0.00461772]
[1737934193734,0.61947772,3253.6,3253.3,3.2078]
[1737934194138,0.61489,3253.4,3253.3,3.2078]
[1737934194337,0.61488,3253.5,3253.3,3.2078]
[1737934194534,0.00461772,3253.6,3253.3,3.2078]
[1737934194736,0.61489,3253.4,3253.3,3.2078]
[1737934195942,0.61497,3253.0,3252.9,0.00461772]
[1737934196136,0.61508,3252.4,3252.3,3.2078]
[1737934196752,0.61517,3251.9,3251.8,6.12057126]
[1737934197343,0.61516,3252.0,3251.8,6.12057126]
[1737934197542,3.2078,3252.7,3251.8,6.12057126]
[1737934197935,0.61515,3252.1,3251.8,6.73575126]
[1737934198135,8.3249,3253.3,3252.3,0.61509]
[1737934198438,0.61507,3252.5,3252.4,3.2078]
[1737934200537,0.61514,3252.1,3252.0,3.2078]
[1737934201438,0.61514,3252.1,3251.6,0.61521]
[1737934201439,0.61521,3251.7,3251.6,3.2078]
[1737934201743,0.61523,3251.6,3251.5,0.00461035]
[1737934202837,0.00461035,3251.9,3251.5,0.00461035]
[1737934203037,0.61523,3251.6,3251.5,2.91738161]
[1737934203244,0.61523,3251.6,3251.5,0.00461035]
[1737934203534,0.61538,3250.9,3250.6,3.2078]
[1737934203733,8.3821,3251.5,3250.6,3.2078]
[1737934203938,8.3821,3251.5,3250.7,3.52816126]
[1737934204141,0.61535,3251.0,3250.7,2.91277126]
[1737934204343,0.61533,3251.1,3250.7,3.52816126]
[1737934204545,0.61535,3251.0,3250.7,3.52816126]
[1737934204741,0.61537,3250.9,3250.7,2.91277126]
[1737934204944,8.3821,3251.5,3250.6,3.21241035]
[1737934205142,0.6154,3250.7,3250.6,3.21241035]
[1737934206248,0.6154,3250.7,3250.6,0.00461035]
[1737934207347,1.53866,3250.4,3249.1,6.12057126]
[1737934207543,0.61568,3249.2,3249.1,3.2078]
[1737934207744,0.61568,3249.2,3248.7,11.85864126]
[1737934207745,0.6157,3249.2,3248.7,11.85864126]
[1737934208047,0.6157,3249.2,3248.8,0.61576]
[1737934208248,4.7946,3250.0,3249.1,6.12057126]
[1737934208437,4.7946,3250.0,3249.5,3.2078]
[1737934208839,0.61554,3250.0,3249.6,0.61561]
[1737934209036,0.61559,3249.8,3249.5,6.12057126]
[1737934209239,0.6156,3249.7,3249.5,3.2078]
[1737934209446,3.21241035,3250.1,3249.1,2.91277126]
[1737934209651,3.21241035,3250.1,3248.7,5.12691035]
[1737934209652,3.21241035,3250.1,3248.7,8.03968161]
[1737934209845,0.61576,3248.8,3248.7,0.00461035]
[1737934210244,5.2018,3249.2,3248.7,0.00461035]
[1737934210549,0.61576,3248.8,3248.7,0.00461035]
[1737934212150,0.61573,3249.0,3248.7,0.00461035]
[1737934212353,0.61576,3248.8,3248.7,0.00461035]
[1737934212851,2.91277126,3248.8,3247.7,3.2078]
[1737934213047,0.61593,3248.0,3247.7,3.2078]
[1737934213346,3.2078,3248.4,3247.5,5.7385]
[1737934213347,0.61594,3247.9,3247.5,5.7385]
[1737934213540,0.61592,3248.0,3247.5,5.7385]
[1737934213742,0.61593,3248.0,3247.5,5.73851]
[1737934214154,0.61593,3248.0,3247.6,0.61598]